Workbook

Sheet 指南
B4: 個人現金流量
B5: 本工作表具備 每年、 每月 與 每日 現金流量工作表。請選擇最適合自己的現金流量類型，或全部套用以協助瞭解您的個人現金流量。
B9: 每年現金流量 | D9: 每月現金流量 | F9: 每日現金流量
B11: 輸入各方面的年度現金流量金額。查看每月細目並比較各個項目，最重要的是掌握每年與每月數據的損益底線。 | D11: 請輸入每月所發生的每月現金流量，或對其他月份加以評估，以瞭解該年度中各個月份的預估現金流量。 | F11: 請輸入每日所發生的估計現金流量金額，並查看估計的每月與年度總計。請使用本工作表瞭解您在經過一個月或一年的時間後所呈現的每日消費習慣。

Sheet 每年現金流量
B1: 個人現金流量
B2: =AnnualCashFlowToDate -> NT$397,500.00 | H2: 此為年度評估。若要檢視年度金額與每月估計值，請使用本工作表。 若要將每日項目新增到表格中，請估計這些項目的年度金額/數值並輸入在 [每年] 欄位中。
B5: 收入摘要 | F5: 支出摘要 | J5: 裁量支出摘要 | N5: 儲蓄摘要
B6: 年度總計： | C6: =tblIncome[[#Totals],[每年 ]] -> NT$1,250,000.00 | F6: 年度總計： | G6: =tblExpenses[[#Totals],[每年 ]] -> NT$490,000.00 | J6: 年度總計： | K6: =tblDiscretionary[[#Totals],[每年 ]] -> NT$132,500.00 | N6: 年度總計： | O6: =tblSavings[[#Totals],[每年 ]] -> NT$230,000.00
B26: 每月總計： | C26: =tblIncome[[#Totals],[每月 ]] -> NT$104,166.67 | F26: 每月總計： | G26: =tblExpenses[[#Totals],[每月 ]] -> NT$40,833.33 | J26: 每月總計： | K26: =tblDiscretionary[[#Totals],[每月 ]] -> NT$11,041.67 | N26: 每月總計： | O26: =tblSavings[[#Totals],[每月 ]] -> NT$19,166.67
B29: 收入 | C29: 每年 | D29: 每月 | F29: 費用 | G29: 每年 | H29: 每月 | J29: 裁量支出 | K29: 每年 | L29: 每月 | N29: 存款 | O29: 每年 | P29: 每月
B30: 薪資 | C30: NT$900,000.00 | D30: =tblIncome[[#This Row],[每年 ]]/12 -> NT$75,000.00 | F30: 所得稅/社會安全/醫療稅 | G30: NT$150,000.00 | H30: =tblExpenses[[#This Row],[每年 ]]/12 -> NT$12,500.00 | J30: 用餐 | K30: NT$12,000.00 | L30: =tblDiscretionary[[#This Row],[每年 ]]/12 -> NT$1,000.00 | N30: 預備金 | O30: NT$50,000.00 | P30: =tblSavings[[#This Row],[每年 ]]/12 -> NT$4,166.67
B31: 佣金/獎金 | C31: NT$50,000.00 | D31: =tblIncome[[#This Row],[每年 ]]/12 -> NT$4,166.67 | F31: 國家所得稅 | G31: NT$25,000.00 | H31: =tblExpenses[[#This Row],[每年 ]]/12 -> NT$2,083.33 | J31: 禮物 | K31: NT$6,000.00 | L31: =tblDiscretionary[[#This Row],[每年 ]]/12 -> NT$500.00 | N31: 401(k)/Etc | O31: NT$120,000.00 | P31: =tblSavings[[#This Row],[每年 ]]/12 -> NT$10,000.00
B32: 其他 1 | C32: NT$300,000.00 | D32: =tblIncome[[#This Row],[每年 ]]/12 -> NT$25,000.00 | F32: 車輛稅/費 | G32: NT$2,000.00 | H32: =tblExpenses[[#This Row],[每年 ]]/12 -> NT$166.67 | J32: 旅遊 | K32: NT$22,500.00 | L32: =tblDiscretionary[[#This Row],[每年 ]]/12 -> NT$1,875.00 | N32: 儲蓄/投資 | O32: NT$60,000.00 | P32: =tblSavings[[#This Row],[每年 ]]/12 -> NT$5,000.00
B33: 其他 2 | D33: =tblIncome[[#This Row],[每年 ]]/12 -> NT$0.00 | F33: 車貸 | G33: NT$40,000.00 | H33: =tblExpenses[[#This Row],[每年 ]]/12 -> NT$3,333.33 | J33: 娛樂 | K33: NT$12,000.00 | L33: =tblDiscretionary[[#This Row],[每年 ]]/12 -> NT$1,000.00 | N33: 其他 1 | P33: =tblSavings[[#This Row],[每年 ]]/12 -> NT$0.00
B34: 其他 3 | D34: =tblIncome[[#This Row],[每年 ]]/12 -> NT$0.00 | F34: 貸款/房租 | G34: NT$150,000.00 | H34: =tblExpenses[[#This Row],[每年 ]]/12 -> NT$12,500.00 | J34: 個人保健 | K34: NT$3,000.00 | L34: =tblDiscretionary[[#This Row],[每年 ]]/12 -> NT$250.00 | N34: 其他 2 | P34: =tblSavings[[#This Row],[每年 ]]/12 -> NT$0.00
B35: 其他 4 | D35: =tblIncome[[#This Row],[每年 ]]/12 -> NT$0.00 | F35: 保險 | G35: NT$2,500.00 | H35: =tblExpenses[[#This Row],[每年 ]]/12 -> NT$208.33 | J35: 購物 | K35: NT$20,000.00 | L35: =tblDiscretionary[[#This Row],[每年 ]]/12 -> NT$1,666.67 | N35: 合計 | O35: =SUBTOTAL(109,tblSavings[[每年 ]]) -> NT$230,000.00 | P35: =SUBTOTAL(109,tblSavings[[每月 ]]) -> NT$19,166.67
B36: 合計 | C36: =SUBTOTAL(109,tblIncome[[每年 ]]) -> NT$1,250,000.00 | D36: =SUBTOTAL(109,tblIncome[[每月 ]]) -> NT$104,166.67 | F36: 電 | G36: NT$12,000.00 | H36: =tblExpenses[[#This Row],[每年 ]]/12 -> NT$1,000.00 | J36: 慈善 | K36: NT$6,000.00 | L36: =tblDiscretionary[[#This Row],[每年 ]]/12 -> NT$500.00
F37: 瓦斯 | G37: NT$6,000.00 | H37: =tblExpenses[[#This Row],[每年 ]]/12 -> NT$500.00 | J37: 俱樂部/會員 | K37: NT$3,000.00 | L37: =tblDiscretionary[[#This Row],[每年 ]]/12 -> NT$250.00
F38: 水/汙水處理 | G38: NT$6,000.00 | H38: =tblExpenses[[#This Row],[每年 ]]/12 -> NT$500.00 | J38: 居家修繕 | K38: NT$48,000.00 | L38: =tblDiscretionary[[#This Row],[每年 ]]/12 -> NT$4,000.00
F39: 垃圾 | G39: NT$1,500.00 | H39: =tblExpenses[[#This Row],[每年 ]]/12 -> NT$125.00 | J39: 其他 1 | L39: =tblDiscretionary[[#This Row],[每年 ]]/12 -> NT$0.00
F40: 電話 | G40: NT$6,000.00 | H40: =tblExpenses[[#This Row],[每年 ]]/12 -> NT$500.00 | J40: 其他 2 | L40: =tblDiscretionary[[#This Row],[每年 ]]/12 -> NT$0.00
F41: 網路 | G41: NT$6,000.00 | H41: =tblExpenses[[#This Row],[每年 ]]/12 -> NT$500.00 | J41: 合計 | K41: =SUBTOTAL(109,tblDiscretionary[[每年 ]]) -> NT$132,500.00 | L41: =SUBTOTAL(109,tblDiscretionary[[每月 ]]) -> NT$11,041.67
F42: 生活/殘障津貼 | G42: NT$15,000.00 | H42: =tblExpenses[[#This Row],[每年 ]]/12 -> NT$1,250.00
F43: 食物 | G43: NT$50,000.00 | H43: =tblExpenses[[#This Row],[每年 ]]/12 -> NT$4,166.67
F44: 衣物 | G44: NT$12,000.00 | H44: =tblExpenses[[#This Row],[每年 ]]/12 -> NT$1,000.00
F45: 醫療/牙醫/處方 | G45: NT$6,000.00 | H45: =tblExpenses[[#This Row],[每年 ]]/12 -> NT$500.00
F46: 其他 1 | H46: =tblExpenses[[#This Row],[每年 ]]/12 -> NT$0.00
F47: 其他 2 | H47: =tblExpenses[[#This Row],[每年 ]]/12 -> NT$0.00
F48: 合計 | G48: =SUBTOTAL(109,tblExpenses[[每年 ]]) -> NT$490,000.00 | H48: =SUBTOTAL(109,tblExpenses[[每月 ]]) -> NT$40,833.33

Sheet 每月現金流量
B1: 個人現金流量
B2: =MonthlyCashFlowToDate -> -NT$1,597,057.50 | H2: 注意：對於每日項目，請估計每月金額/數值並輸入在適當的月份欄位中。
B5: 類型 | C5: 描述 | D5: 一月 | E5: 二月 | F5: 三月 | G5: 四月 | H5: 五月 | I5: 六月 | J5: 七月 | K5: 八月 | L5: 九月 | M5: 十月 | N5: 十一月 | O5: 十二月 | P5: 合計
B6: 收入 | C6: 薪資 | D6: NT$75,000.00 | E6: NT$75,000.00 | F6: NT$75,000.00 | G6: NT$75,000.00 | H6: NT$75,000.00 | I6: NT$75,000.00 | P6: =SUM(tblMontly[[#This Row],[一月]:[十二月]]) -> NT$450,000.00
B7: 收入 | C7: 佣金/獎金 | D7: NT$4,000.00 | E7: NT$4,000.00 | F7: NT$5,000.00 | G7: NT$2,000.00 | H7: NT$0.00 | I7: NT$6,000.00 | P7: =SUM(tblMontly[[#This Row],[一月]:[十二月]]) -> NT$21,000.00
B8: 收入 | C8: 其他 1 | D8: NT$25,000.00 | E8: NT$25,000.00 | F8: NT$25,000.00 | G8: NT$25,000.00 | H8: NT$25,000.00 | I8: NT$25,000.00 | P8: =SUM(tblMontly[[#This Row],[一月]:[十二月]]) -> NT$150,000.00
B9: 收入 | C9: 其他 2 | D9: NT$0.00 | E9: NT$0.00 | F9: NT$0.00 | G9: NT$0.00 | H9: NT$0.00 | I9: NT$0.00 | P9: =SUM(tblMontly[[#This Row],[一月]:[十二月]]) -> NT$0.00
B10: 收入 | C10: 其他 3 | D10: NT$0.00 | E10: NT$0.00 | F10: NT$0.00 | G10: NT$0.00 | H10: NT$0.00 | I10: NT$0.00 | P10: =SUM(tblMontly[[#This Row],[一月]:[十二月]]) -> NT$0.00
B11: 收入 | C11: 其他 4 | D11: NT$0.00 | E11: NT$0.00 | F11: NT$0.00 | G11: NT$0.00 | H11: NT$0.00 | I11: NT$0.00 | P11: =SUM(tblMontly[[#This Row],[一月]:[十二月]]) -> NT$0.00
B12: 費用 | C12: 所得稅/社會安全/醫療稅 | D12: NT$1,250.00 | E12: NT$125,000.00 | F12: NT$12,500.00 | G12: NT$12,500.00 | H12: NT$12,500.00 | I12: NT$12,500.00 | P12: =SUM(tblMontly[[#This Row],[一月]:[十二月]]) -> NT$176,250.00
B13: 費用 | C13: 國家所得稅 | D13: NT$208.33 | E13: NT$20,833.33 | F13: NT$2,083.30 | G13: NT$2,083.30 | H13: NT$2,083.30 | I13: NT$2,083.30 | P13: =SUM(tblMontly[[#This Row],[一月]:[十二月]]) -> NT$29,374.87
B14: 費用 | C14: 車輛稅/費 | D14: NT$16.67 | E14: NT$1,666.67 | F14: NT$166.70 | G14: NT$166.70 | H14: NT$166.70 | I14: NT$166.70 | P14: =SUM(tblMontly[[#This Row],[一月]:[十二月]]) -> NT$2,350.13
B15: 費用 | C15: 車貸 | D15: NT$333.33 | E15: NT$33,333.33 | F15: NT$3,333.30 | G15: NT$3,333.30 | H15: NT$3,333.30 | I15: NT$3,333.30 | P15: =SUM(tblMontly[[#This Row],[一月]:[十二月]]) -> NT$46,999.87
B16: 費用 | C16: 貸款/房租 | D16: NT$1,250.00 | E16: NT$125,000.00 | F16: NT$12,500.00 | G16: NT$12,500.00 | H16: NT$12,500.00 | I16: NT$12,500.00 | P16: =SUM(tblMontly[[#This Row],[一月]:[十二月]]) -> NT$176,250.00
B17: 費用 | C17: 保險 | D17: NT$25.00 | E17: NT$2,500.00 | F17: NT$250.00 | G17: NT$250.00 | H17: NT$250.00 | I17: NT$250.00 | P17: =SUM(tblMontly[[#This Row],[一月]:[十二月]]) -> NT$3,525.00
B18: 費用 | C18: 電 | D18: NT$100.00 | E18: NT$10,000.00 | F18: NT$1,000.00 | G18: NT$1,000.00 | H18: NT$1,000.00 | I18: NT$1,000.00 | P18: =SUM(tblMontly[[#This Row],[一月]:[十二月]]) -> NT$14,100.00
B19: 費用 | C19: 瓦斯 | D19: NT$50.00 | E19: NT$5,000.00 | F19: NT$500.00 | G19: NT$500.00 | H19: NT$500.00 | I19: NT$500.00 | P19: =SUM(tblMontly[[#This Row],[一月]:[十二月]]) -> NT$7,050.00
B20: 費用 | C20: 水 | D20: NT$50.00 | E20: NT$5,000.00 | F20: NT$500.00 | G20: NT$500.00 | H20: NT$500.00 | I20: NT$500.00 | P20: =SUM(tblMontly[[#This Row],[一月]:[十二月]]) -> NT$7,050.00
B21: 費用 | C21: 汙水處理 | D21: NT$25.00 | E21: NT$2,500.00 | F21: NT$250.00 | G21: NT$250.00 | H21: NT$250.00 | I21: NT$250.00 | P21: =SUM(tblMontly[[#This Row],[一月]:[十二月]]) -> NT$3,525.00
B22: 費用 | C22: 垃圾 | D22: NT$12.50 | E22: NT$1,250.00 | F22: NT$125.00 | G22: NT$125.00 | H22: NT$125.00 | I22: NT$125.00 | P22: =SUM(tblMontly[[#This Row],[一月]:[十二月]]) -> NT$1,762.50
B23: 費用 | C23: 電話 | D23: NT$50.00 | E23: NT$5,000.00 | F23: NT$500.00 | G23: NT$500.00 | H23: NT$500.00 | I23: NT$500.00 | P23: =SUM(tblMontly[[#This Row],[一月]:[十二月]]) -> NT$7,050.00
B24: 費用 | C24: 網路 | D24: NT$50.00 | E24: NT$5,000.00 | F24: NT$500.00 | G24: NT$500.00 | H24: NT$500.00 | I24: NT$500.00 | P24: =SUM(tblMontly[[#This Row],[一月]:[十二月]]) -> NT$7,050.00
B25: 費用 | C25: 生活/殘障津貼 | D25: NT$125.00 | E25: NT$12,500.00 | F25: NT$1,250.00 | G25: NT$1,250.00 | H25: NT$1,250.00 | I25: NT$1,250.00 | P25: =SUM(tblMontly[[#This Row],[一月]:[十二月]]) -> NT$17,625.00
B26: 費用 | C26: 食物 | D26: NT$400.00 | E26: NT$40,000.00 | F26: NT$4,500.00 | G26: NT$4,000.00 | H26: NT$4,500.00 | I26: NT$4,250.00 | P26: =SUM(tblMontly[[#This Row],[一月]:[十二月]]) -> NT$57,650.00
B27: 費用 | C27: 衣物 | D27: NT$50.00 | E27: NT$5,000.00 | F27: NT$1,000.00 | G27: NT$750.00 | H27: NT$1,250.00 | I27: NT$750.00 | P27: =SUM(tblMontly[[#This Row],[一月]:[十二月]]) -> NT$8,800.00
B28: 費用 | C28: 醫療/牙醫/處方 | D28: NT$50.00 | E28: NT$5,000.00 | F28: NT$250.00 | G28: NT$250.00 | H28: NT$200.00 | I28: NT$700.00 | P28: =SUM(tblMontly[[#This Row],[一月]:[十二月]]) -> NT$6,450.00
B29: 費用 | C29: 公車 | D29: NT$30.00 | E29: NT$3,000.00 | F29: NT$300.00 | G29: NT$200.00 | H29: NT$300.00 | I29: NT$300.00 | P29: =SUM(tblMontly[[#This Row],[一月]:[十二月]]) -> NT$4,130.00
B30: 費用 | C30: 其他 2 | D30: NT$0.00 | E30: NT$0.00 | F30: NT$0.00 | G30: NT$0.00 | H30: NT$0.00 | I30: NT$0.00 | P30: =SUM(tblMontly[[#This Row],[一月]:[十二月]]) -> NT$0.00
B31: 費用 | C31: 其他 3 | D31: NT$0.00 | E31: NT$0.00 | F31: NT$0.00 | G31: NT$0.00 | H31: NT$0.00 | I31: NT$0.00 | P31: =SUM(tblMontly[[#This Row],[一月]:[十二月]]) -> NT$0.00
B32: 費用 | C32: 其他 4 | D32: NT$0.00 | E32: NT$0.00 | F32: NT$0.00 | G32: NT$0.00 | H32: NT$0.00 | I32: NT$0.00 | P32: =SUM(tblMontly[[#This Row],[一月]:[十二月]]) -> NT$0.00
B33: 裁量 | C33: 用餐 | D33: NT$50.00 | E33: NT$5,000.00 | F33: NT$1,000.00 | G33: NT$500.00 | H33: NT$1,500.00 | I33: NT$1,000.00 | P33: =SUM(tblMontly[[#This Row],[一月]:[十二月]]) -> NT$9,050.00
B34: 裁量 | C34: 禮物 | D34: NT$25.00 | E34: NT$2,500.00 | F34: NT$500.00 | G34: NT$250.00 | H34: NT$750.00 | I34: NT$500.00 | P34: =SUM(tblMontly[[#This Row],[一月]:[十二月]]) -> NT$4,525.00
B35: 裁量 | C35: 旅遊 | D35: NT$0.00 | E35: NT$0.00 | F35: NT$10,000.00 | G35: NT$0.00 | H35: NT$0.00 | I35: NT$10,000.00 | P35: =SUM(tblMontly[[#This Row],[一月]:[十二月]]) -> NT$20,000.00
B36: 裁量 | C36: 娛樂 | D36: NT$50.00 | E36: NT$5,000.00 | F36: NT$1,000.00 | G36: NT$500.00 | H36: NT$1,500.00 | I36: NT$1,000.00 | P36: =SUM(tblMontly[[#This Row],[一月]:[十二月]]) -> NT$9,050.00
B37: 裁量 | C37: 個人保健 | D37: NT$15.00 | E37: NT$1,500.00 | F37: NT$350.00 | G37: NT$150.00 | H37: NT$250.00 | I37: NT$350.00 | P37: =SUM(tblMontly[[#This Row],[一月]:[十二月]]) -> NT$2,615.00
B38: 裁量 | C38: 購物 | D38: NT$100.00 | E38: NT$10,000.00 | F38: NT$1,500.00 | G38: NT$1,750.00 | H38: NT$1,500.00 | I38: NT$1,750.00 | P38: =SUM(tblMontly[[#This Row],[一月]:[十二月]]) -> NT$16,600.00
B39: 裁量 | C39: 慈善 | D39: NT$50.00 | E39: NT$5,000.00 | F39: NT$500.00 | G39: NT$500.00 | H39: NT$500.00 | I39: NT$500.00 | P39: =SUM(tblMontly[[#This Row],[一月]:[十二月]]) -> NT$7,050.00
B40: 裁量 | C40: 俱樂部/會員 | D40: NT$25.00 | E40: NT$2,500.00 | F40: NT$250.00 | G40: NT$250.00 | H40: NT$250.00 | I40: NT$250.00 | P40: =SUM(tblMontly[[#This Row],[一月]:[十二月]]) -> NT$3,525.00
B41: 裁量 | C41: 居家修繕 | D41: NT$400.00 | E41: NT$40,000.00 | F41: NT$4,000.00 | G41: NT$4,000.00 | H41: NT$4,000.00 | I41: NT$4,000.00 | P41: =SUM(tblMontly[[#This Row],[一月]:[十二月]]) -> NT$56,400.00
B42: 裁量 | C42: 其他 1 | D42: NT$0.00 | E42: NT$0.00 | F42: NT$0.00 | G42: NT$0.00 | H42: NT$0.00 | I42: NT$0.00 | P42: =SUM(tblMontly[[#This Row],[一月]:[十二月]]) -> NT$0.00
B43: 裁量 | C43: 其他 2 | D43: NT$0.00 | E43: NT$0.00 | F43: NT$0.00 | G43: NT$0.00 | H43: NT$0.00 | I43: NT$0.00 | P43: =SUM(tblMontly[[#This Row],[一月]:[十二月]]) -> NT$0.00
B44: 存款 | C44: 預備金 | D44: NT$416.67 | E44: NT$41,666.67 | F44: NT$4,166.70 | G44: NT$4,166.70 | H44: NT$4,166.70 | I44: NT$4,166.70 | P44: =SUM(tblMontly[[#This Row],[一月]:[十二月]]) -> NT$58,750.13
B45: 存款 | C45: 401(k)/Etc | D45: NT$1,000.00 | E45: NT$100,000.00 | F45: NT$10,000.00 | G45: NT$10,000.00 | H45: NT$10,000.00 | I45: NT$10,000.00 | P45: =SUM(tblMontly[[#This Row],[一月]:[十二月]]) -> NT$141,000.00
B46: 存款 | C46: 儲蓄/投資帳戶 | D46: NT$500.00 | E46: NT$50,000.00 | F46: NT$5,000.00 | G46: NT$5,000.00 | H46: NT$5,000.00 | I46: NT$5,000.00 | P46: =SUM(tblMontly[[#This Row],[一月]:[十二月]]) -> NT$70,500.00
B47: 存款 | C47: 其他 1 | D47: NT$0.00 | E47: NT$0.00 | F47: NT$0.00 | G47: NT$0.00 | H47: NT$0.00 | I47: NT$0.00 | P47: =SUM(tblMontly[[#This Row],[一月]:[十二月]]) -> NT$0.00
B48: 存款 | C48: 其他 2 | D48: NT$0.00 | E48: NT$0.00 | F48: NT$0.00 | G48: NT$0.00 | H48: NT$0.00 | I48: NT$0.00 | P48: =SUM(tblMontly[[#This Row],[一月]:[十二月]]) -> NT$0.00
B49: 合計 | D49: =SUMIF(tblMontly[類型],"Income",tblMontly[一月])-SUMIF(tblMontly[類型],"<>Income",tblMontly[一月]) -> (NT$110,707.50) | E49: =SUMIF(tblMontly[類型],"Income",tblMontly[二月])-SUMIF(tblMontly[類型],"<>Income",tblMontly[二月]) -> (NT$774,750.00) | F49: =SUMIF(tblMontly[類型],"Income",tblMontly[三月])-SUMIF(tblMontly[類型],"<>Income",tblMontly[三月]) -> (NT$184,775.00) | G49: =SUMIF(tblMontly[類型],"Income",tblMontly[四月])-SUMIF(tblMontly[類型],"<>Income",tblMontly[四月]) -> (NT$169,725.00) | H49: =SUMIF(tblMontly[類型],"Income",tblMontly[五月])-SUMIF(tblMontly[類型],"<>Income",tblMontly[五月]) -> (NT$171,125.00) | I49: =SUMIF(tblMontly[類型],"Income",tblMontly[六月])-SUMIF(tblMontly[類型],"<>Income",tblMontly[六月]) -> (NT$185,975.00) | J49: =SUMIF(tblMontly[類型],"Income",tblMontly[七月])-SUMIF(tblMontly[類型],"<>Income",tblMontly[七月]) -> NT$0.00 | K49: =SUMIF(tblMontly[類型],"Income",tblMontly[八月])-SUMIF(tblMontly[類型],"<>Income",tblMontly[八月]) -> NT$0.00 | L49: =SUMIF(tblMontly[類型],"Income",tblMontly[九月])-SUMIF(tblMontly[類型],"<>Income",tblMontly[九月]) -> NT$0.00 | M49: =SUMIF(tblMontly[類型],"Income",tblMontly[十月])-SUMIF(tblMontly[類型],"<>Income",tblMontly[十月]) -> NT$0.00 | N49: =SUMIF(tblMontly[類型],"Income",tblMontly[十一月])-SUMIF(tblMontly[類型],"<>Income",tblMontly[十一月]) -> NT$0.00 | O49: =SUMIF(tblMontly[類型],"Income",tblMontly[十二月])-SUMIF(tblMontly[類型],"<>Income",tblMontly[十二月]) -> NT$0.00 | P49: =SUMIF(tblMontly[類型],"Income",tblMontly[合計])-SUMIF(tblMontly[類型],"<>Income",tblMontly[合計]) -> (NT$1,597,057.50)

Sheet 每日現金流量
B1: 個人現金流量
B2: =DailyCashFlow -> NT$5,778.40 | H2: NOTE: If you wish to add daily items to the Table, estimate their monthly amount/value and place value in the appropriate month column.
B4: 每日摘要
B5: 合計 | D5: 每日 | E5: 每月 | F5: 每年
B6: 收入 | D6: =SUMIF(tblDaily[類型],tblDailyTotals[[#This Row],[合計]],tblDaily[每日]) -> NT$3,424.70 | E6: =SUMIF(tblDaily[類型],tblDailyTotals[[#This Row],[合計]],tblDaily[每月]) -> NT$104,167.96 | F6: =SUMIF(tblDaily[類型],tblDailyTotals[[#This Row],[合計]],tblDaily[每年]) -> NT$1,250,015.50
B7: 費用 | D7: =SUMIF(tblDaily[類型],tblDailyTotals[[#This Row],[合計]],tblDaily[每日]) -> NT$1,360.60 | E7: =SUMIF(tblDaily[類型],tblDailyTotals[[#This Row],[合計]],tblDaily[每月]) -> NT$41,384.92 | F7: =SUMIF(tblDaily[類型],tblDailyTotals[[#This Row],[合計]],tblDaily[每年]) -> NT$496,619.00
B8: 裁量 | D8: =SUMIF(tblDaily[類型],tblDailyTotals[[#This Row],[合計]],tblDaily[每日]) -> NT$362.90 | E8: =SUMIF(tblDaily[類型],tblDailyTotals[[#This Row],[合計]],tblDaily[每月]) -> NT$11,038.21 | F8: =SUMIF(tblDaily[類型],tblDailyTotals[[#This Row],[合計]],tblDaily[每年]) -> NT$132,458.50
B9: 存款 | D9: =SUMIF(tblDaily[類型],tblDailyTotals[[#This Row],[合計]],tblDaily[每日]) -> NT$630.20 | E9: =SUMIF(tblDaily[類型],tblDailyTotals[[#This Row],[合計]],tblDaily[每月]) -> NT$19,168.58 | F9: =SUMIF(tblDaily[類型],tblDailyTotals[[#This Row],[合計]],tblDaily[每年]) -> NT$230,023.00
B12: 類型 | C12: 描述 | D12: 每日 | E12: 每月 | F12: 每年
B13: 收入 | C13: 薪資 | D13: NT$2,465.80 | E13: =tblDaily[[#This Row],[每年]]/12 -> NT$75,001.42 | F13: =tblDaily[[#This Row],[每日]]*365 -> NT$900,017.00
B14: 收入 | C14: 佣金/獎金 | D14: NT$137.00 | E14: =tblDaily[[#This Row],[每年]]/12 -> NT$4,167.08 | F14: =tblDaily[[#This Row],[每日]]*365 -> NT$50,005.00
B15: 收入 | C15: 其他 1 | D15: NT$821.90 | E15: =tblDaily[[#This Row],[每年]]/12 -> NT$24,999.46 | F15: =tblDaily[[#This Row],[每日]]*365 -> NT$299,993.50
B16: 收入 | C16: 其他 2 | D16: NT$0.00 | E16: =tblDaily[[#This Row],[每年]]/12 -> NT$0.00 | F16: =tblDaily[[#This Row],[每日]]*365 -> NT$0.00
B17: 收入 | C17: 其他 3 | D17: NT$0.00 | E17: =tblDaily[[#This Row],[每年]]/12 -> NT$0.00 | F17: =tblDaily[[#This Row],[每日]]*365 -> NT$0.00
B18: 收入 | C18: 其他 4 | D18: NT$0.00 | E18: =tblDaily[[#This Row],[每年]]/12 -> NT$0.00 | F18: =tblDaily[[#This Row],[每日]]*365 -> NT$0.00
B19: 費用 | C19: 所得稅/社會安全/醫療稅 | D19: NT$411.00 | E19: =tblDaily[[#This Row],[每年]]/12 -> NT$12,501.25 | F19: =tblDaily[[#This Row],[每日]]*365 -> NT$150,015.00
B20: 費用 | C20: 國家所得稅 | D20: NT$68.50 | E20: =tblDaily[[#This Row],[每年]]/12 -> NT$2,083.54 | F20: =tblDaily[[#This Row],[每日]]*365 -> NT$25,002.50
B21: 費用 | C21: 車輛稅/費 | D21: NT$5.50 | E21: =tblDaily[[#This Row],[每年]]/12 -> NT$167.29 | F21: =tblDaily[[#This Row],[每日]]*365 -> NT$2,007.50
B22: 費用 | C22: 車貸 | D22: NT$109.60 | E22: =tblDaily[[#This Row],[每年]]/12 -> NT$3,333.67 | F22: =tblDaily[[#This Row],[每日]]*365 -> NT$40,004.00
B23: 費用 | C23: 貸款/房租 | D23: NT$411.00 | E23: =tblDaily[[#This Row],[每年]]/12 -> NT$12,501.25 | F23: =tblDaily[[#This Row],[每日]]*365 -> NT$150,015.00
B24: 費用 | C24: 保險 | D24: NT$6.80 | E24: =tblDaily[[#This Row],[每年]]/12 -> NT$206.83 | F24: =tblDaily[[#This Row],[每日]]*365 -> NT$2,482.00
B25: 費用 | C25: 電 | D25: NT$32.90 | E25: =tblDaily[[#This Row],[每年]]/12 -> NT$1,000.71 | F25: =tblDaily[[#This Row],[每日]]*365 -> NT$12,008.50
B26: 費用 | C26: 瓦斯 | D26: NT$16.40 | E26: =tblDaily[[#This Row],[每年]]/12 -> NT$498.83 | F26: =tblDaily[[#This Row],[每日]]*365 -> NT$5,986.00
B27: 費用 | C27: 水 | D27: NT$16.40 | E27: =tblDaily[[#This Row],[每年]]/12 -> NT$498.83 | F27: =tblDaily[[#This Row],[每日]]*365 -> NT$5,986.00
B28: 費用 | C28: 汙水處理 | D28: NT$8.20 | E28: =tblDaily[[#This Row],[每年]]/12 -> NT$249.42 | F28: =tblDaily[[#This Row],[每日]]*365 -> NT$2,993.00
B29: 費用 | C29: 垃圾 | D29: NT$4.10 | E29: =tblDaily[[#This Row],[每年]]/12 -> NT$124.71 | F29: =tblDaily[[#This Row],[每日]]*365 -> NT$1,496.50
B30: 費用 | C30: 電話 | D30: NT$16.40 | E30: =tblDaily[[#This Row],[每年]]/12 -> NT$498.83 | F30: =tblDaily[[#This Row],[每日]]*365 -> NT$5,986.00
B31: 費用 | C31: 網路 | D31: NT$16.40 | E31: =tblDaily[[#This Row],[每年]]/12 -> NT$498.83 | F31: =tblDaily[[#This Row],[每日]]*365 -> NT$5,986.00
B32: 費用 | C32: 生活/殘障津貼 | D32: NT$41.10 | E32: =tblDaily[[#This Row],[每年]]/12 -> NT$1,250.13 | F32: =tblDaily[[#This Row],[每日]]*365 -> NT$15,001.50
B33: 費用 | C33: 食物 | D33: NT$137.00 | E33: =tblDaily[[#This Row],[每年]]/12 -> NT$4,167.08 | F33: =tblDaily[[#This Row],[每日]]*365 -> NT$50,005.00
B34: 費用 | C34: 衣物 | D34: NT$32.90 | E34: =tblDaily[[#This Row],[每年]]/12 -> NT$1,000.71 | F34: =tblDaily[[#This Row],[每日]]*365 -> NT$12,008.50
B35: 費用 | C35: 醫療/牙醫/處方 | D35: NT$16.40 | E35: =tblDaily[[#This Row],[每年]]/12 -> NT$498.83 | F35: =tblDaily[[#This Row],[每日]]*365 -> NT$5,986.00
B36: 費用 | C36: 公車 | D36: NT$10.00 | E36: =tblDaily[[#This Row],[每年]]/12 -> NT$304.17 | F36: =tblDaily[[#This Row],[每日]]*365 -> NT$3,650.00
B37: 費用 | C37: 其他 2 | D37: NT$0.00 | E37: =tblDaily[[#This Row],[每年]]/12 -> NT$0.00 | F37: =tblDaily[[#This Row],[每日]]*365 -> NT$0.00
B38: 費用 | C38: 其他 3 | D38: NT$0.00 | E38: =tblDaily[[#This Row],[每年]]/12 -> NT$0.00 | F38: =tblDaily[[#This Row],[每日]]*365 -> NT$0.00
B39: 費用 | C39: 其他 4 | D39: NT$0.00 | E39: =tblDaily[[#This Row],[每年]]/12 -> NT$0.00 | F39: =tblDaily[[#This Row],[每日]]*365 -> NT$0.00
B40: 裁量 | C40: 用餐 | D40: NT$32.90 | E40: =tblDaily[[#This Row],[每年]]/12 -> NT$1,000.71 | F40: =tblDaily[[#This Row],[每日]]*365 -> NT$12,008.50
B41: 裁量 | C41: 禮物 | D41: NT$16.40 | E41: =tblDaily[[#This Row],[每年]]/12 -> NT$498.83 | F41: =tblDaily[[#This Row],[每日]]*365 -> NT$5,986.00
B42: 裁量 | C42: 旅遊 | D42: NT$61.60 | E42: =tblDaily[[#This Row],[每年]]/12 -> NT$1,873.67 | F42: =tblDaily[[#This Row],[每日]]*365 -> NT$22,484.00
B43: 裁量 | C43: 娛樂 | D43: NT$32.90 | E43: =tblDaily[[#This Row],[每年]]/12 -> NT$1,000.71 | F43: =tblDaily[[#This Row],[每日]]*365 -> NT$12,008.50
B44: 裁量 | C44: 個人保健 | D44: NT$8.20 | E44: =tblDaily[[#This Row],[每年]]/12 -> NT$249.42 | F44: =tblDaily[[#This Row],[每日]]*365 -> NT$2,993.00
B45: 裁量 | C45: 購物 | D45: NT$54.80 | E45: =tblDaily[[#This Row],[每年]]/12 -> NT$1,666.83 | F45: =tblDaily[[#This Row],[每日]]*365 -> NT$20,002.00
B46: 裁量 | C46: 慈善 | D46: NT$16.40 | E46: =tblDaily[[#This Row],[每年]]/12 -> NT$498.83 | F46: =tblDaily[[#This Row],[每日]]*365 -> NT$5,986.00
B47: 裁量 | C47: 俱樂部/會員 | D47: NT$8.20 | E47: =tblDaily[[#This Row],[每年]]/12 -> NT$249.42 | F47: =tblDaily[[#This Row],[每日]]*365 -> NT$2,993.00
B48: 裁量 | C48: 居家修繕 | D48: NT$131.50 | E48: =tblDaily[[#This Row],[每年]]/12 -> NT$3,999.79 | F48: =tblDaily[[#This Row],[每日]]*365 -> NT$47,997.50
B49: 裁量 | C49: 其他 1 | D49: NT$0.00 | E49: =tblDaily[[#This Row],[每年]]/12 -> NT$0.00 | F49: =tblDaily[[#This Row],[每日]]*365 -> NT$0.00
B50: 裁量 | C50: 其他 2 | D50: NT$0.00 | E50: =tblDaily[[#This Row],[每年]]/12 -> NT$0.00 | F50: =tblDaily[[#This Row],[每日]]*365 -> NT$0.00
B51: 存款 | C51: 預備金 | D51: NT$137.00 | E51: =tblDaily[[#This Row],[每年]]/12 -> NT$4,167.08 | F51: =tblDaily[[#This Row],[每日]]*365 -> NT$50,005.00
B52: 存款 | C52: 401(k)/Etc | D52: NT$328.80 | E52: =tblDaily[[#This Row],[每年]]/12 -> NT$10,001.00 | F52: =tblDaily[[#This Row],[每日]]*365 -> NT$120,012.00
B53: 存款 | C53: 儲蓄/投資帳戶 | D53: NT$164.40 | E53: =tblDaily[[#This Row],[每年]]/12 -> NT$5,000.50 | F53: =tblDaily[[#This Row],[每日]]*365 -> NT$60,006.00
B54: 存款 | C54: 其他 1 | D54: NT$0.00 | E54: =tblDaily[[#This Row],[每年]]/12 -> NT$0.00 | F54: =tblDaily[[#This Row],[每日]]*365 -> NT$0.00
B55: 存款 | C55: 其他 2 | D55: NT$0.00 | E55: =tblDaily[[#This Row],[每年]]/12 -> NT$0.00 | F55: =tblDaily[[#This Row],[每日]]*365 -> NT$0.00
B56: 合計 | D56: =SUMIF(tblDaily[類型],"Income",tblDaily[每日])-SUMIF(tblDaily[類型],"<>Income",tblDaily[每日]) -> -NT$5,778.40 | E56: =SUMIF(tblDaily[類型],"Income",tblDaily[每月])-SUMIF(tblDaily[類型],"<>Income",tblDaily[每月]) -> -NT$175,759.67 | F56: =SUMIF(tblDaily[類型],"Income",tblDaily[每年])-SUMIF(tblDaily[類型],"<>Income",tblDaily[每年]) -> -NT$2,109,116.00
